fUST/lending_fUST_20250719
["ID","MTS","AMOUNT","RATE_DAILY","PERIOD"]
[373138644,1752879048743,-151.0,0.00016988,2]
[373138645,1752879048753,-286.94368822,0.00016988,2]
[373138646,1752879048763,-151.0,0.00016988,2]
[373138647,1752879048772,-170.06651,0.00016988,2]
[373138648,1752879048783,-463.30568519,0.00016988,2]
[373138649,1752879048792,-460.0,0.00016988,2]
[373138650,1752879048801,-542.90625233,0.00016988,2]
[373138651,1752879048810,-460.0,0.00016988,2]
[373138652,1752879048820,-151.0,0.00016988,2]
[373138653,1752879048830,-151.0,0.00016988,2]
[373138654,1752879048839,-2083.89,0.00016988,2]
[373138655,1752879048849,-460.0,0.00016988,2]
[373138656,1752879048858,-473.64,0.00016988,2]
[373138657,1752879048868,-460.0,0.00016988,2]
[373138658,1752879048878,-1246.27,0.00016988,2]
[373138659,1752879048888,-1459.68,0.00016988,2]
[373138660,1752879048897,-3521.67,0.00016988,2]
[373138661,1752879048907,-292.590404,0.00016989,2]
[373138662,1752879048917,-151.0,0.00016989,2]
[373138663,1752879048926,-151.0,0.00016989,2]
[373138664,1752879048935,-268.618306,0.00016992,2]
[373138665,1752879048945,-151.0,0.00016992,2]
[373138666,1752879048955,-151.0,0.00016992,2]
[373138667,1752879048965,-52772.11473595,0.00017,2]
[373138668,1752879048975,-152.067781,0.00017,2]
[373138669,1752879048984,-151.0,0.00017,2]
[373138670,1752879048994,-151.0,0.00017,2]
[373138671,1752879049003,-151.0,0.00017,2]
[373138672,1752879049013,-151.0,0.00017,2]
[373138673,1752879049024,-151.0,0.00017,2]
[373138674,1752879049035,-626.935251,0.00017,2]
[373138675,1752879049044,-626.935251,0.00017,2]
[373138676,1752879049054,-151.0,0.00017,2]
[373138677,1752879049063,-151.0,0.00017,2]
[373138678,1752879049073,-277.247276,0.00017,2]
[373138679,1752879049082,-277.247276,0.00017,2]
[373138680,1752879049093,-151.0,0.00017,2]
[373138681,1752879049102,-200.503272,0.00017,2]
[373138682,1752879049111,-200.503272,0.00017,2]
[373138683,1752879049121,-151.0,0.00017,2]
[373138684,1752879049130,-151.0,0.00017028,2]
[373138685,1752879049139,-151.0,0.00017028,2]
[373138686,1752879049149,-25062.5227908,0.00017028,2]
[373138687,1752879049158,-151.0,0.00017028,2]
[373138688,1752879049168,-151.0,0.00017028,2]
[373138689,1752879049178,-3048.14937814,0.00017028,2]
[373138690,1752879049188,-151.0,0.00017028,2]
[373138691,1752879049197,-151.0,0.00017028,2]
[373138692,1752879049207,-151.0,0.00017028,2]
[373138693,1752879049219,-151.0,0.00017028,2]
[373138694,1752879049229,-151.0,0.00017028,2]
[373138695,1752879049238,-151.0,0.00017028,2]
[373138696,1752879049247,-151.0,0.00017028,2]
[373138697,1752879049258,-207.4,0.00017028,2]
[373138698,1752879049267,-151.0,0.00017028,2]
[373138699,1752879049278,-151.0,0.00017028,2]
[373138700,1752879049287,-151.0,0.00017028,2]
[373138701,1752879049298,-151.0,0.00017028,2]
[373138702,1752879049307,-151.0,0.00017028,2]
[373138703,1752879049317,-151.0,0.00017028,2]
[373138704,1752879049327,-158.90468919,0.00017028,2]
[373138705,1752879049336,-151.0,0.00017028,2]
[373138706,1752879049346,-151.0,0.00017028,2]
[373138707,1752879049356,-151.526385,0.00017028,2]
[373138708,1752879049366,-151.526385,0.00017028,2]
[373138709,1752879049375,-151.0,0.00017028,2]
[373138710,1752879049385,-151.0,0.00017028,2]
[373138711,1752879049395,-243.511103,0.00017028,2]
[373138712,1752879049404,-151.0,0.00017049,2]
[373138713,1752879049414,-151.0,0.00017049,2]
[373138714,1752879049423,-151.0,0.00017049,2]
[373138715,1752879049432,-151.0,0.00017049,2]
[373138716,1752879049441,-301.220945,0.00017088,2]
[373138717,1752879049451,-301.220945,0.00017088,2]
[373138718,1752879049460,-151.0,0.00017094,2]
[373138719,1752879049470,-151.0,0.00017162,2]
[373138720,1752879049480,-2086.78482641,0.00017176,2]
[373138721,1752879049490,-301.220945,0.00017195,2]
[373138722,1752879049499,-301.220945,0.00017195,2]
[373138723,1752879049509,-460.0,0.0001726,2]
[373138724,1752879049518,-345.77823333,0.0001726,2]
[373138725,1752879049529,-460.0,0.0001726,2]
[373138726,1752879049539,-460.0,0.0001726,2]
[373138727,1752879049548,-460.0,0.0001726,2]
[373138728,1752879049558,-460.0,0.0001726,2]
[373138729,1752879049567,-460.0,0.0001726,2]
[373138730,1752879049576,-460.0,0.0001726,2]
[373138731,1752879049585,-460.0,0.0001726,2]
[373138732,1752879049594,-442.34556368,0.0001726,2]
[373138733,1752879049604,-460.0,0.0001726,2]
[373138734,1752879049613,-460.0,0.0001726,2]
[373138735,1752879049623,-460.0,0.0001726,2]
[373138736,1752879049633,-460.0,0.0001726,2]
[373138737,1752879049722,-460.0,0.0001726,2]
[373138738,1752879049733,-528.25,0.0001726,2]
[373138739,1752879049742,-460.0,0.0001726,2]
[373138740,1752879049751,-460.0,0.0001726,2]
[373138741,1752879049761,-460.0,0.0001726,2]
[373138742,1752879049771,-460.0,0.0001726,2]
[373138743,1752879049784,-460.0,0.0001726,2]
[373138744,1752879049793,-460.0,0.0001726,2]
[373138745,1752879049803,-460.0,0.0001726,2]
[373138746,1752879049812,-2265.17,0.0001726,2]
[373138747,1752879049822,-792.39,0.0001726,2]
[373138748,1752879049832,-3566.37,0.0001726,2]
[373138749,1752879049841,-705.83,0.0001726,2]
[373138750,1752879049851,-504.22,0.0001726,2]
[373138751,1752879049860,-460.0,0.0001726,2]
[373138752,1752879049870,-460.0,0.0001726,2]
[373138753,1752879049879,-517.73,0.0001726,2]
[373138754,1752879049889,-460.0,0.0001726,2]
[373138755,1752879049898,-460.0,0.0001726,2]
[373138756,1752879049907,-72.24245765,0.0001726,2]
[373138757,1752879050128,-460.0,0.00016438,2]
[373138758,1752879050138,-1303.51,0.0001644,2]
[373138759,1752879050148,-460.0,0.00016712,2]
[373138760,1752879050157,-1303.51,0.00016714,2]
[373138761,1752879050166,-460.0,0.00016986,2]
[373138762,1752879050175,-1303.51,0.00016988,2]
[373138763,1752879050185,-387.75754235,0.0001726,2]
[373138764,1752879050194,-304.71,0.0001726,2]
[373138765,1752879050203,-460.0,0.0001726,2]
[373138766,1752879050215,-1869.87,0.0001726,2]
[373138767,1752879050225,-460.0,0.0001726,2]
[373138768,1752879050235,-460.0,0.0001726,2]
[373138769,1752879050246,-460.0,0.0001726,2]
[373138770,1752879050257,-460.0,0.0001726,2]
[373138771,1752879050268,-460.0,0.0001726,2]
[373138772,1752879050280,-460.0,0.0001726,2]
[373138773,1752879050291,-460.0,0.0001726,2]
[373138774,1752879050301,-460.0,0.0001726,2]
[373138775,1752879050311,-460.0,0.0001726,2]
[373138776,1752879050321,-460.0,0.0001726,2]
[373138777,1752879050330,-1411.79,0.0001726,2]
[373138778,1752879050340,-1265.47,0.0001726,2]
[373138779,1752879050350,-460.0,0.0001726,2]
[373138780,1752879050359,-460.0,0.0001726,2]
[373138781,1752879050368,-553.68,0.0001726,2]
[373138782,1752879050380,-460.0,0.0001726,2]
[373138783,1752879050389,-784.74,0.0001726,2]
[373138784,1752879050399,-460.0,0.0001726,2]
[373138785,1752879050409,-460.0,0.0001726,2]
[373138786,1752879050418,-553.13,0.0001726,2]
[373138787,1752879050428,-460.0,0.0001726,2]
[373138788,1752879050437,-1806.91,0.0001726,2]
[373138789,1752879050447,-548.14,0.0001726,2]
[373138790,1752879050457,-1626.68,0.0001726,2]
[373138791,1752879050466,-460.0,0.0001726,2]
[373138792,1752879050476,-460.0,0.0001726,2]
[373138793,1752879050486,-151.0,0.00017261,2]
[373138794,1752879050495,-460.0,0.00017261,2]
[373138795,1752879050505,-151.0,0.00017261,2]
[373138796,1752879050514,-440.1,0.00017261,2]
[373138797,1752879050524,-460.0,0.00017261,2]
[373138798,1752879050536,-460.0,0.00017261,2]
[373138799,1752879050546,-604.91,0.00017261,2]
[373138800,1752879050556,-460.0,0.00017261,2]
[373138801,1752879050565,-460.0,0.00017261,2]
[373138802,1752879050575,-460.0,0.00017261,2]
[373138803,1752879050584,-547.73,0.00017261,2]
[373138804,1752879050594,-460.0,0.00017261,2]
[373138805,1752879050603,-460.0,0.00017261,2]
[373138806,1752879050614,-460.0,0.00017261,2]
[373138807,1752879050625,-460.0,0.00017261,2]
[373138808,1752879050634,-491.52,0.00017261,2]
[373138809,1752879050643,-460.0,0.00017261,2]
[373138810,1752879050654,-460.0,0.00017261,2]
[373138811,1752879050663,-460.0,0.00017261,2]
[373138812,1752879050673,-571.46218896,0.00017261,2]
[373138813,1752879050683,-500.56947302,0.00017261,2]
[373138814,1752879050692,-460.0,0.00017261,2]
[373138815,1752879050702,-460.0,0.00017261,2]
[373138816,1752879050712,-460.0,0.00017261,2]
[373138817,1752879050722,-460.0,0.00017261,2]
[373138818,1752879050731,-460.0,0.00017261,2]
[373138819,1752879050741,-460.0,0.00017261,2]
[373138820,1752879050750,-590.82,0.00017261,2]
[373138821,1752879050759,-770.21,0.00017261,2]
[373138822,1752879050770,-604.44,0.00017261,2]
[373138823,1752879050783,-466.38605832,0.00017261,2]
[373138824,1752879050793,-460.0,0.00017261,2]
[373138825,1752879050802,-460.0,0.00017261,2]
[373138826,1752879050812,-460.0,0.00017261,2]
[373138827,1752879050821,-460.0,0.00017261,2]
[373138828,1752879050832,-460.0,0.00017261,2]
[373138829,1752879050842,-460.0,0.00017261,2]
[373138830,1752879050852,-460.0,0.00017261,2]
[373138831,1752879050863,-3578.81,0.00017261,2]
[373138832,1752879050872,-467.18557456,0.00017261,2]
[373138833,1752879050882,-460.0,0.00017261,2]
[373138834,1752879050891,-460.0,0.00017261,2]
[373138835,1752879050900,-460.0,0.00017261,2]
[373138836,1752879050910,-879.67,0.00017261,2]
[373138837,1752879050919,-151.0,0.00017262,2]
[373138838,1752879050929,-221.18927,0.00017262,2]
[373138839,1752879050939,-151.0,0.00017262,2]
[373138840,1752879050950,-151.0,0.00017262,2]
[373138841,1752879050959,-151.0,0.00017262,2]
[373138842,1752879050969,-457.97245164,0.00017262,2]
[373138843,1752879050980,-2083.89,0.00017262,2]
[373138844,1752879050989,-473.64,0.00017262,2]
[373138845,1752879050999,-1246.27,0.00017262,2]
[373138846,1752879051009,-1459.68,0.00017262,2]
[373138847,1752879051019,-3521.67,0.00017262,2]
[373138848,1752879051034,-151.0,0.00017262,2]
[373138849,1752879051043,-200.503272,0.00017264,2]
[373138850,1752879051053,-200.503272,0.00017264,2]
[373138851,1752879051063,-151.0,0.00017323,2]
[373138852,1752879051072,-151.0,0.00017323,2]
[373138853,1752879051082,-151.0,0.00017323,2]
[373138854,1752879051091,-151.0,0.00017323,2]
[373138855,1752879051101,-277.247276,0.00017323,2]
[373138856,1752879051110,-277.247276,0.00017323,2]
[373138857,1752879051120,-165.990702,0.00017323,2]
[373138858,1752879051129,-151.0,0.00017366,2]
[373138859,1752879051140,-301.220945,0.00017367,2]
[373138860,1752879051232,-301.220945,0.00017367,2]
[373138861,1752879051243,-216.414949,0.00017369,2]
[373138862,1752879051253,-301.220945,0.0001737,2]
[373138863,1752879051263,-301.220945,0.0001737,2]
[373138864,1752879051274,-151.526385,0.0001737,2]
[373138865,1752879051288,-151.526385,0.0001737,2]
[373138866,1752879051298,-2086.78482641,0.00017452,2]
[373138867,1752879051308,-379.58287166,0.00017521,2]
[373138868,1752879051318,-500.0,0.00017521,2]
[373138869,1752879051327,-500.0,0.00017521,2]
[373138870,1752879051336,-613.19035276,0.00017521,2]
[373138871,1752879051346,-500.0,0.00017521,2]
[373138872,1752879051355,-460.0,0.00017534,2]
[373138873,1752879051365,-460.0,0.00017534,2]
[373138874,1752879051374,-460.0,0.00017534,2]
[373138875,1752879051384,-406.89810606,0.00017534,2]
[373138876,1752879051393,-303.08019544,0.00017534,2]
[373138877,1752879051404,-460.0,0.00017534,2]
[373138878,1752879051413,-460.0,0.00017534,2]
[373138879,1752879051423,-460.0,0.00017534,2]
[373138880,1752879051432,-528.25,0.00017534,2]
[373138881,1752879051442,-460.0,0.00017534,2]
[373138882,1752879051452,-154.19,0.00017534,2]
[373138883,1752879051462,-460.0,0.00017534,2]
[373138884,1752879051471,-2265.17,0.00017534,2]
[373138885,1752879051481,-163.93,0.00017534,2]
[373138886,1752879051490,-792.39,0.00017534,2]
[373138887,1752879051500,-3566.37,0.00017534,2]
[373138888,1752879051510,-705.83,0.00017534,2]
[373138889,1752879051520,-460.0,0.00017534,2]
[373138890,1752879051532,-460.0,0.00017534,2]
[373138891,1752879051542,-517.73,0.00017534,2]
[373138892,1752879051551,-460.0,0.00017534,2]
[373138893,1752879051561,-1869.87,0.00017534,2]
[373138894,1752879051571,-460.0,0.00017534,2]
[373138895,1752879051580,-460.0,0.00017534,2]
[373138896,1752879051590,-460.0,0.00017534,2]
[373138897,1752879051600,-460.0,0.00017534,2]
[373138898,1752879051609,-460.0,0.00017534,2]
[373138899,1752879051619,-1411.79,0.00017534,2]
[373138900,1752879051628,-1265.47,0.00017534,2]
[373138901,1752879051638,-460.0,0.00017534,2]
[373138902,1752879051648,-460.0,0.00017534,2]
[373138903,1752879051657,-553.68,0.00017534,2]
[373138904,1752879051667,-784.74,0.00017534,2]
[373138905,1752879051676,-460.0,0.00017534,2]
[373138906,1752879051686,-460.0,0.00017534,2]
[373138907,1752879051695,-553.13,0.00017534,2]
[373138908,1752879051705,-1806.91,0.00017534,2]
[373138909,1752879051714,-548.14,0.00017534,2]
[373138910,1752879051723,-1626.68,0.00017534,2]
[373138911,1752879051733,-460.0,0.00017535,2]
[373138912,1752879051743,-460.0,0.00017535,2]
[373138913,1752879051752,-460.0,0.00017535,2]
[373138914,1752879051761,-604.91,0.00017535,2]
[373138915,1752879051771,-460.0,0.00017535,2]
[373138916,1752879051785,-460.0,0.00017535,2]
[373138917,1752879051794,-460.0,0.00017535,2]
[373138918,1752879051803,-460.0,0.00017535,2]
[373138919,1752879051813,-460.0,0.00017535,2]
[373138920,1752879051822,-491.52,0.00017535,2]
[373138921,1752879051832,-354.75753684,0.00017535,2]
[373138922,1752879051841,-460.0,0.00017535,2]
[373138923,1752879051850,-460.0,0.00017535,2]
[373138924,1752879051860,-456.86,0.00017535,2]
[373138925,1752879051869,-460.0,0.00017535,2]
[373138926,1752879051879,-590.82,0.00017535,2]
[373138927,1752879051890,-770.21,0.00017535,2]
[373138928,1752879051900,-604.44,0.00017535,2]
[373138929,1752879051910,-460.0,0.00017535,2]
[373138930,1752879051921,-214.77888614,0.00017535,2]
[373138931,1752879051932,-460.0,0.00017535,2]
[373138932,1752879051943,-460.0,0.00017535,2]
[373138933,1752879051953,-3578.81,0.00017535,2]
[373138934,1752879051963,-460.0,0.00017535,2]
[373138935,1752879051974,-460.0,0.00017535,2]
[373138936,1752879051983,-396.98887418,0.00017535,2]
[373138937,1752879052407,-460.0,0.00016438,2]
[373138938,1752879052420,-95.59550936,0.00016438,2]
[373138939,1752879052768,5000.0,0.000164,2]
[373138940,1752879062686,318.86079679,0.000164,2]
[373138941,1752879068312,188.916805,0.00016088,2]
[373138943,1752879485067,563.179324,0.00013699,2]
[373138944,1752879488109,24900.0,0.00015438,2]
[373138945,1752879601198,151.0,0.000161,2]
[373138946,1752879601718,151.0,0.000152,2]
[373138947,1752879601943,151.0,0.000144,2]
[373138948,1752879668797,185.16978352,0.00016336,2]
[373138949,1752879675797,413.16749068,0.00016338,2]
[373138950,1752879699741,185.16978351,0.00016337,2]
[373138953,1752880045122,-1200.0,0.00016427,2]
[373138954,1752880045144,-1200.0,0.00016427,2]
[373138955,1752880045165,-300.0,0.00016427,2]
[373138956,1752880045188,-816.18,0.00016428,3]
[373138957,1752880045209,-408.09,0.00016428,3]
[373138958,1752880045230,-204.04,0.00016428,3]
[373138959,1752880045252,-93.41891361,0.00016428,3]
[373139051,1752880243407,-518.74108639,0.00016428,3]
[373139052,1752880243417,-198.27,0.00016428,3]
[373139053,1752880243426,-594.83,0.00016428,3]
[373139054,1752880243435,-300.0,0.00016431,2]
[373139055,1752880243445,-300.0,0.00016432,2]
[373139056,1752880243454,-300.0,0.00016432,2]
[373139057,1752880243463,-300.0,0.00016432,2]
[373139058,1752880243473,-1200.0,0.00016432,2]
[373139059,1752880243482,-567.23519542,0.00016433,2]
[373139060,1752880243491,-500.0,0.00016433,2]
[373139061,1752880243499,-500.0,0.00016433,2]
[373139062,1752880243508,-400.81599202,0.00016433,2]
[373139063,1752880243517,-334.14341215,0.00016433,2]
[373139064,1752880243526,-500.0,0.00016433,2]
[373139065,1752880243535,-500.0,0.00016433,2]
[373139066,1752880243546,-500.0,0.00016433,2]
[373139067,1752880243557,-500.0,0.00016433,2]
[373139068,1752880243572,-500.0,0.00016433,2]
[373139069,1752880243582,-500.0,0.00016433,2]
[373139070,1752880243592,-462.66396633,0.00016433,2]
[373139071,1752880243601,-500.0,0.00016433,2]
[373139072,1752880243613,-500.0,0.00016433,2]
[373139073,1752880243623,-500.0,0.00016433,2]
[373139075,1752880243635,-500.0,0.00016433,2]
[373139077,1752880243645,-482.05401864,0.00016433,2]
[373139079,1752880243654,-500.0,0.00016433,2]
[373139081,1752880243664,-500.0,0.00016433,2]
[373139082,1752880243675,-500.0,0.00016433,2]
[373139083,1752880243684,-43830.7964371,0.00016434,2]
[373139084,1752880243699,-160.0,0.00016435,2]
[373139085,1752880243709,-604.18314652,0.00016437,2]
[373139086,1752880243719,-1373.90768997,0.00016437,2]
[373139087,1752880243730,-1373.90768997,0.00016437,2]
[373139088,1752880243745,-1373.90768997,0.00016437,2]
[373139089,1752880243754,-1373.90768997,0.00016437,2]
[373139090,1752880243764,-1373.90768997,0.00016437,2]
[373139091,1752880243774,-1373.90768997,0.00016437,2]
[373139092,1752880243785,-1373.90768997,0.00016437,2]
[373139093,1752880243797,-1373.90768997,0.00016437,2]
[373139094,1752880243809,-1373.90768997,0.00016437,2]
[373139095,1752880243818,-1373.90768997,0.00016437,2]
[373139096,1752880243828,-1373.90768997,0.00016437,2]
[373139097,1752880243838,-1373.90768997,0.00016437,2]
[373139098,1752880243848,-1373.90768997,0.00016437,2]
[373139099,1752880243857,-1373.90768997,0.00016437,2]
[373139100,1752880243870,-1442.60307446,0.00016437,2]
[373139101,1752880243879,-1442.60307446,0.00016437,2]
[373139102,1752880243889,-1442.60307446,0.00016437,2]
[373139103,1752880243899,-1442.60307446,0.00016437,2]
[373139104,1752880243909,-1442.60307446,0.00016437,2]
[373139105,1752880243918,-1442.60307446,0.00016437,2]
[373139106,1752880243928,-1442.60307446,0.00016437,2]
[373139107,1752880243937,-1442.60307446,0.00016437,2]
[373139108,1752880243947,-1442.60307446,0.00016437,2]
[373139109,1752880243956,-1582.05470499,0.00016437,2]
[373139110,1752880243966,-1582.05470499,0.00016437,2]
[373139111,1752880243975,-1582.05470499,0.00016437,2]
[373139112,1752880243985,-1582.05470499,0.00016437,2]
[373139113,1752880243995,-1730.95397137,0.00016437,2]
[373139114,1752880244004,-460.0,0.00016438,2]
[373139115,1752880244013,-462.31915762,0.00016438,2]
[373139116,1752880244023,-460.0,0.00016438,2]
[373139117,1752880244032,-279.77929616,0.00016438,2]
[373139118,1752880244042,-460.53233468,0.00016438,2]
[373139119,1752880244051,-460.0,0.00016438,2]
[373139120,1752880244060,-460.0,0.00016438,2]
[373139121,1752880244070,-552.75748179,0.00016438,2]
[373139122,1752880244079,-460.0,0.00016438,2]
[373139123,1752880244088,-460.0,0.00016438,2]
[373139124,1752880244098,-460.0,0.00016438,2]
[373139125,1752880244108,-460.0,0.00016438,2]
[373139126,1752880244119,-460.0,0.00016438,2]
[373139127,1752880244129,-460.0,0.00016438,2]
[373139128,1752880244139,-460.0,0.00016438,2]
[373139129,1752880244148,-223.33746561,0.00016438,2]
[373139130,1752880244157,-460.0,0.00016438,2]
[373139131,1752880244167,-460.0,0.00016438,2]
[373139132,1752880244176,-463.19108857,0.00016438,2]
[373139133,1752880244186,-460.0,0.00016438,2]
[373139134,1752880244195,-460.0,0.00016438,2]
[373139135,1752880244205,-460.0,0.00016438,2]
[373139136,1752880244214,-460.0,0.00016438,2]
[373139137,1752880244224,-460.0,0.00016438,2]
[373139138,1752880244233,-468.12219909,0.00016438,2]
[373139139,1752880244242,-460.0,0.00016438,2]
[373139140,1752880244252,-460.0,0.00016438,2]
[373139141,1752880244262,-460.0,0.00016438,2]
[373139142,1752880244272,-569.11465255,0.00016438,2]
[373139143,1752880244282,-460.0,0.00016438,2]
[373139144,1752880244291,-460.0,0.00016438,2]
[373139145,1752880244303,-266.34189574,0.00016438,2]
[373139146,1752880244313,-460.0,0.00016438,2]
[373139147,1752880244324,-152.40367054,0.00016438,2]
[373139148,1752880244334,-460.94300254,0.00016438,2]
[373139149,1752880244344,-460.0,0.00016438,2]
[373139150,1752880244355,-592.90218151,0.00016438,2]
[373139151,1752880244365,-460.0,0.00016438,2]
[373139152,1752880244375,-460.0,0.00016438,2]
[373139153,1752880244385,-543.50263434,0.00016438,2]
[373139154,1752880244395,-417.12482979,0.00016438,2]
[373139155,1752880244407,-460.0,0.00016438,2]
[373139156,1752880244416,-460.0,0.00016438,2]
[373139157,1752880244425,-471.56441384,0.00016438,2]
[373139158,1752880244434,-460.0,0.00016438,2]
[373139159,1752880244444,-460.0,0.00016438,2]
[373139160,1752880244453,-480.57,0.00016438,2]
[373139161,1752880244463,-460.0,0.00016438,2]
[373139162,1752880244472,-460.0,0.00016438,2]
[373139163,1752880244481,-460.0,0.00016438,2]
[373139164,1752880244490,-460.0,0.00016438,2]
[373139165,1752880244499,-460.0,0.00016438,2]
[373139166,1752880244509,-460.0,0.00016438,2]
[373139167,1752880244518,-479.45815707,0.00016438,2]
[373139168,1752880244527,-460.0,0.00016438,2]
[373139169,1752880244537,-557.00975723,0.00016438,2]
[373139170,1752880244545,-460.0,0.00016438,2]
[373139171,1752880244559,-460.0,0.00016438,2]
[373139172,1752880244568,-387.07869557,0.00016438,2]
[373139173,1752880244578,-460.0,0.00016438,2]
[373139174,1752880244587,-460.0,0.00016438,2]
[373139175,1752880244598,-460.0,0.00016438,2]
[373139176,1752880244608,-460.0,0.00016438,2]
[373139177,1752880244622,-460.0,0.00016438,2]
[373139178,1752880244631,-460.0,0.00016438,2]
[373139179,1752880244640,-460.0,0.00016438,2]
[373139180,1752880244649,-460.0,0.00016438,2]
[373139181,1752880244783,-500.0,0.00016438,2]
[373139182,1752880244793,-500.0,0.00016438,2]
[373139183,1752880244803,-460.0,0.00016438,2]
[373139184,1752880244812,-460.0,0.00016438,2]
[373139185,1752880244822,-460.0,0.00016438,2]
[373139186,1752880244831,-309.97353741,0.00016438,2]
[373139187,1752880244840,-460.0,0.00016438,2]
[373139188,1752880244850,-460.0,0.00016438,2]
[373139189,1752880244859,-460.0,0.00016438,2]
[373139190,1752880244871,-460.0,0.00016438,2]
[373139191,1752880244881,-364.40449064,0.00016438,2]
[373139192,1752880244891,-605.38198395,0.00016438,2]
[373139193,1752880244900,-460.0,0.00016438,2]
[373139194,1752880244910,-183.47769214,0.00016438,2]
[373139195,1752880244920,-460.0,0.00016438,2]
[373139196,1752880244929,-460.0,0.00016438,2]
[373139197,1752880244940,-460.0,0.00016438,2]
[373139198,1752880244951,-460.0,0.00016438,2]
[373139199,1752880244961,-460.0,0.00016438,2]
[373139200,1752880244971,-197.0072821,0.00016438,2]
[373139201,1752880244980,-460.0,0.00016438,2]
[373139202,1752880244990,-460.0,0.00016438,2]
[373139203,1752880245000,-460.0,0.00016438,2]
[373139204,1752880245010,-460.0,0.00016438,2]
[373139205,1752880245020,-460.0,0.00016438,2]
[373139206,1752880245030,-460.0,0.00016438,2]
[373139207,1752880245039,-460.0,0.00016438,2]
[373139208,1752880245049,-460.0,0.00016438,2]
[373139209,1752880245057,-460.0,0.00016438,2]
[373139210,1752880245067,-460.0,0.00016438,2]
[373139211,1752880245077,-460.0,0.00016438,2]
[373139212,1752880245087,-460.0,0.00016438,2]
[373139213,1752880245097,-460.0,0.00016438,2]
[373139214,1752880245108,-460.0,0.00016438,2]
[373139215,1752880245120,-460.0,0.00016438,2]
[373139216,1752880245129,-460.0,0.00016438,2]
[373139217,1752880245140,-460.0,0.00016438,2]
[373139218,1752880245149,-460.0,0.00016438,2]
[373139219,1752880245159,-460.0,0.00016438,2]
[373139220,1752880245169,-460.0,0.00016438,2]
[373139221,1752880245179,-460.0,0.00016438,2]
[373139222,1752880245189,-460.0,0.00016438,2]
[373139223,1752880245199,-460.0,0.00016438,2]
[373139224,1752880245208,-460.0,0.00016438,2]
[373139225,1752880245218,-460.0,0.00016438,2]
[373139226,1752880245227,-460.0,0.00016438,2]
[373139227,1752880245238,-536.64129561,0.00016438,2]
[373139228,1752880245249,-460.0,0.00016438,2]
[373139229,1752880245259,-460.0,0.00016438,2]
[373139230,1752880245270,-460.0,0.00016438,2]
[373139231,1752880245280,-460.0,0.00016438,2]
[373139232,1752880245290,-461.57923151,0.00016438,2]
[373139233,1752880245300,-460.0,0.00016438,2]
[373139234,1752880245310,-561.59,0.00016438,2]
[373139235,1752880245321,-460.0,0.00016438,2]
[373139236,1752880245331,-460.0,0.00016438,2]
[373139237,1752880245343,-460.0,0.00016438,2]
[373139238,1752880245353,-460.0,0.00016438,2]
[373139239,1752880245365,-460.0,0.00016438,2]
[373139240,1752880245374,-460.0,0.00016438,2]
[373139241,1752880245384,-460.0,0.00016438,2]